bitfinex/quotes_SOLUSD_20241126
["timestamp","ask_amount","ask_price","bid_price","bid_amount"]
[1732607082989,16.51539558,236.65,236.58,4.2268]
[1732607083393,23.776884,236.64,236.58,4.2268]
[1732607083976,23.776884,236.64,236.58,16.51539558]
[1732607084783,23.776884,236.64,236.57,16.51539558]
[1732607085094,23.776884,236.64,236.58,16.51539558]
[1732607085297,23.776884,236.64,236.59,4.2267]
[1732607085695,23.776884,236.64,236.57,4.2269]
[1732607085696,16.51539558,236.62,236.57,4.2269]
[1732607085997,23.776884,236.61,236.57,4.2269]
[1732607086170,23.776884,236.61,236.54,21.8923]
[1732607086377,23.776884,236.56,236.53,4.2276]
[1732607086707,23.776884,236.58,236.53,4.2276]
[1732607086874,23.776884,236.56,236.51,4.228]
[1732607087072,4.2258,236.64,236.49,20.7681]
[1732607087073,16.51539558,236.53,236.49,20.7681]
[1732607087300,23.776884,236.52,236.49,4.2283]
[1732607087482,23.776884,236.53,236.49,4.2283]
[1732607087799,137.5,236.63,236.49,20.74369558]
[1732607087800,23.776884,236.55,236.49,20.74369558]
[1732607087985,20.0,236.61,236.49,20.74369558]
[1732607088304,23.776884,236.59,236.52,16.51539558]
[1732607088687,23.776884,236.59,236.53,16.51539558]
[1732607089194,23.776884,236.59,236.54,4.2276]
[1732607089383,23.776884,236.61,236.55,16.51539558]
[1732607089694,23.776884,236.61,236.54,4.2276]
[1732607089695,16.51539558,236.6,236.54,4.2276]
[1732607089887,23.776884,236.59,236.54,4.2276]
[1732607090089,40.29227958,236.59,236.54,4.2276]
[1732607090588,16.51539558,236.57,236.5,16.51539558]
[1732607090895,23.776884,236.56,236.51,16.51539558]
[1732607091082,23.776884,236.57,236.51,16.51539558]
[1732607091283,23.776884,236.57,236.52,4.2279]
[1732607092608,23.776884,236.55,236.52,4.2279]
[1732607093302,16.51539558,236.54,236.52,4.2279]
[1732607093787,16.51539558,236.54,236.49,4.2285]
[1732607094491,23.776884,236.53,236.49,4.2285]
[1732607095290,23.776884,236.54,236.49,4.2285]
[1732607095489,23.776884,236.52,236.49,4.2285]
[1732607095691,23.776884,236.52,236.48,4.2285]
[1732607095893,23.776884,236.52,236.46,4.229]
[1732607096099,23.776884,236.53,236.47,16.51539558]
[1732607096280,23.776884,236.53,236.46,4.229]
[1732607096888,23.776884,236.53,236.47,16.51539558]
[1732607097102,23.776884,236.54,236.48,16.51539558]
[1732607097284,23.776884,236.55,236.48,16.51539558]
[1732607097486,23.776884,236.55,236.49,16.51539558]
[1732607097904,40.29227958,236.55,236.5,4.2283]
[1732607098293,23.776884,236.53,236.5,4.2283]
[1732607098705,23.776884,236.51,236.47,4.2288]
[1732607098889,16.51539558,236.5,236.47,4.2288]
[1732607099891,16.51539558,236.5,236.45,4.2292]
[1732607100294,23.776884,236.51,236.45,4.2292]
[1732607100495,23.776884,236.53,236.45,20.74459558]
[1732607100700,23.776884,236.51,236.45,4.2292]
[1732607101295,23.776884,236.51,236.45,20.74459558]
[1732607102210,23.776884,236.53,236.47,16.51539558]
[1732607102393,10.55545158,236.53,236.45,25.35765158]
[1732607102601,23.776884,236.52,236.45,25.35765158]
[1732607103511,10.55545158,236.57,236.49,10.55545158]
[1732607104219,10.55545158,236.57,236.5,4.2283]
[1732607104409,10.55545158,236.55,236.5,4.2283]
[1732607104605,10.55545158,236.51,236.5,4.2283]
[1732607104799,10.55545158,236.51,236.45,10.573]
[1732607104800,23.776884,236.5,236.45,4.2292]
[1732607104999,10.55545158,236.49,236.45,4.2292]
[1732607105900,23.776884,236.5,236.45,4.2292]
[1732607106195,10.55545158,236.47,236.45,4.2292]
[1732607106411,23.776884,236.46,236.36,10.5769]
[1732607106622,10.55545158,236.43,236.36,10.5769]
[1732607107626,10.55545158,236.43,236.37,4.2306]
[1732607108498,16.50915694,236.43,236.37,4.2306]
[1732607109004,16.50915694,236.41,236.37,4.2306]
[1732607110807,28.005884,236.46,236.26,20.0]
[1732607110808,23.776884,236.38,236.28,4.2322]
[1732607111007,16.50915694,236.34,236.28,4.2322]
[1732607113326,16.50915694,236.34,236.28,20.74135694]
[1732607113898,16.50915694,236.37,236.3,16.50915694]
[1732607114100,23.776884,236.4,236.33,16.50915694]
[1732607114306,16.50915694,236.42,236.34,16.50915694]
[1732607115235,16.50915694,236.42,236.35,4.231]
[1732607115728,16.50915694,236.4,236.35,4.231]
[1732607116629,40.28604094,236.41,236.35,4.231]
[1732607117608,23.776884,236.41,236.35,16.50915694]
[1732607118421,16.50915694,236.45,236.37,16.50915694]
[1732607118827,16.50915694,236.49,236.42,16.50915694]
[1732607119726,16.50915694,236.49,236.43,4.2295]
[1732607120124,16.50915694,236.47,236.43,4.2295]
[1732607120435,16.50915694,236.44,236.36,16.50915694]
[1732607120625,16.50915694,236.4,236.37,4.2306]
[1732607120836,16.50915694,236.39,236.37,4.2306]
[1732607121207,16.50915694,236.39,236.33,4.2313]
[1732607121415,16.50915694,236.37,236.33,4.2313]
[1732607121714,16.50915694,236.37,236.3,27.08865694]
[1732607121715,16.50915694,236.35,236.31,4.2317]
[1732607122238,23.776884,236.38,236.31,4.2317]
[1732607122413,23.776884,236.38,236.33,16.50915694]
[1732607122615,16.50915694,236.41,236.33,16.50915694]
[1732607122616,23.776884,236.4,236.33,16.50915694]
[1732607122913,20.5696,236.53,236.31,14.811]
[1732607122914,16.50915694,236.46,236.39,16.50915694]
[1732607123417,16.50915694,236.44,236.36,16.50915694]
[1732607123608,19.5875,236.49,236.34,36.2012]
[1732607123609,16.50915694,236.46,236.38,16.50915694]
[1732607123915,16.50915694,236.45,236.37,16.50915694]
[1732607124123,23.776884,236.44,236.37,16.50915694]
[1732607125009,16.50915694,236.39,236.31,10.5791]
[1732607125216,16.50915694,236.41,236.34,16.50915694]
[1732607125415,16.50915694,236.42,236.35,16.50915694]
[1732607125910,16.50915694,236.41,236.34,16.50915694]
[1732607126319,16.50915694,236.41,236.35,4.231]
[1732607126615,16.50915694,236.42,236.35,4.231]
[1732607126844,23.776884,236.46,236.35,4.231]
[1732607126845,16.50915694,236.43,236.35,40.74015694]
[1732607127038,23.776884,236.42,236.35,40.74015694]
[1732607127673,16.50915694,236.47,236.39,16.50915694]
[1732607127949,31.86815694,236.49,236.42,16.50915694]
[1732607128118,16.50915694,236.47,236.39,16.50915694]
[1732607128433,16.50915694,236.44,236.38,20.0]
[1732607128812,16.50915694,236.45,236.38,20.0]
[1732607129021,16.50915694,236.44,236.38,20.0]
[1732607129218,16.50915694,236.43,236.36,16.50915694]
[1732607129434,16.50915694,236.43,236.37,4.2306]
[1732607129620,40.28604094,236.45,236.38,16.50915694]
[1732607129815,16.50915694,236.48,236.4,16.50915694]
[1732607130045,23.776884,236.47,236.4,16.50915694]
[1732607130414,16.50915694,236.5,236.42,16.50915694]
[1732607130619,16.50915694,236.51,236.44,16.50915694]
[1732607130834,16.50915694,236.52,236.45,16.50915694]
[1732607131238,16.50915694,236.53,236.45,16.50915694]
[1732607131621,16.50915694,236.53,236.46,4.229]
[1732607132128,16.50915694,236.51,236.46,4.229]
[1732607132316,16.50915694,236.49,236.46,4.229]
[1732607132937,16.50915694,236.48,236.46,4.229]
[1732607133121,16.50915694,236.47,236.43,24.2295]
[1732607133324,16.50915694,236.49,236.43,24.2295]
[1732607134424,16.50915694,236.5,236.43,24.2295]
[1732607134931,16.50915694,236.51,236.43,40.73865694]
[1732607135129,16.50915694,236.55,236.48,16.50915694]
[1732607135442,16.50915694,236.54,236.47,16.50915694]
[1732607135639,16.50915694,236.52,236.44,16.50915694]
[1732607136749,16.50915694,236.52,236.45,4.2292]
[1732607137046,16.50915694,236.49,236.45,4.2292]
[1732607137230,16.50915694,236.53,236.45,20.73835694]
[1732607137429,16.50915694,236.51,236.45,4.2292]
[1732607137626,16.50915694,236.49,236.45,4.2292]
[1732607138138,16.50915694,236.49,236.44,4.2294]
[1732607139925,16.50915694,236.53,236.44,20.73855694]
[1732607140746,16.50915694,236.55,236.48,16.50915694]
[1732607141931,16.50915694,236.53,236.46,16.50915694]
[1732607142125,16.50915694,236.53,236.45,4.2292]
[1732607142327,16.50915694,236.51,236.45,4.2292]
[1732607143028,16.50915694,236.51,236.44,14.8029]
[1732607143230,20.0,236.56,236.46,16.50915694]
[1732607143424,4.227,236.58,236.46,16.50915694]
[1732607143425,23.776884,236.53,236.46,16.50915694]
[1732607144047,16.50915694,236.54,236.46,16.50915694]
[1732607145750,16.50915694,236.54,236.47,4.2288]
[1732607150858,16.50915694,236.58,236.51,16.50915694]
[1732607151163,16.48587454,236.58,236.51,16.50915694]
[1732607151961,16.50915694,236.56,236.49,16.50915694]
[1732607153055,16.50915694,236.56,236.5,4.2283]
[1732607155263,16.50915694,236.56,236.49,4.2285]
[1732607156055,16.50915694,236.56,236.49,31.30885694]
[1732607156560,16.50915694,236.56,236.49,14.7997]
[1732607157254,16.50915694,236.56,236.49,31.30885694]
[1732607157432,16.50915694,236.56,236.49,14.7997]
[1732607159470,16.50915694,236.54,236.49,14.7997]
[1732607160442,23.776884,236.6,236.49,14.7997]
[1732607160656,16.50915694,236.55,236.49,14.7997]
[1732607161038,16.50915694,236.55,236.49,4.2285]
[1732607161363,16.50915694,236.51,236.49,4.2285]
[1732607162256,23.776884,236.54,236.49,4.2285]
[1732607162257,16.50915694,236.53,236.49,4.2285]
[1732607163135,23.776884,236.54,236.49,4.2285]
[1732607163548,16.50915694,236.57,236.49,20.73765694]
[1732607164362,16.50915694,236.63,236.56,4.2272]
[1732607164564,16.50915694,236.65,236.57,16.50915694]
[1732607165861,16.50915694,236.71,236.63,16.50915694]
[1732607166249,16.50915694,236.72,236.65,16.50915694]
[1732607166558,16.50915694,236.72,236.65,4.2256]
[1732607167255,16.50915694,236.69,236.65,4.2256]
[1732607167442,16.50915694,236.7,236.63,20.73515694]
[1732607167640,16.50915694,236.71,236.64,16.50915694]
[1732607168046,16.50915694,236.71,236.63,20.73515694]
[1732607168938,16.50915694,236.69,236.63,4.226]
[1732607169437,16.50915694,236.71,236.64,16.50915694]
[1732607169758,16.50915694,236.72,236.64,16.50915694]
[1732607169949,16.50915694,236.72,236.65,4.2256]
[1732607170262,16.50915694,236.7,236.65,4.2256]
[1732607170767,40.28604094,236.69,236.65,4.2256]
[1732607171257,40.28604094,236.66,236.61,4.2263]
[1732607171440,16.50915694,236.62,236.59,4.2265]
[1732607171640,16.50915694,236.61,236.59,4.2265]
[1732607171839,16.50915694,236.6,236.55,4.2274]
[1732607172058,16.50915694,236.62,236.55,4.2274]
[1732607172640,16.50915694,236.61,236.55,4.2274]
[1732607173049,16.50915694,236.64,236.57,16.50915694]
[1732607173253,23.776884,236.66,236.59,16.50915694]
[1732607173443,23.776884,236.67,236.61,16.50915694]
[1732607173644,16.50915694,236.7,236.63,16.50915694]
[1732607174263,16.50915694,236.71,236.64,20.73495694]
[1732607174466,16.50915694,236.73,236.66,16.50915694]
[1732607175246,16.50915694,236.74,236.66,16.50915694]
[1732607175562,16.50915694,236.74,236.66,16.1268836]
[1732607175769,23.776884,236.72,236.67,4.2252]
[1732607176070,23.776884,236.73,236.67,20.73435694]
[1732607176359,23.776884,236.74,236.67,20.73435694]
[1732607176566,16.50915694,236.75,236.68,16.50915694]
[1732607176867,16.50915694,236.76,236.69,16.50915694]
[1732607177254,16.50915694,236.75,236.68,16.50915694]
[1732607177443,16.50915694,236.75,236.67,20.73435694]
[1732607177770,16.50915694,236.74,236.67,20.73435694]
[1732607178063,23.776884,236.74,236.67,20.73435694]
[1732607178654,23.776884,236.72,236.65,16.50915694]
[1732607178841,16.50915694,236.71,236.64,4.2258]
[1732607179244,16.50915694,236.73,236.66,16.50915694]
[1732607180267,16.50915694,236.73,236.65,16.50915694]
[1732607180448,23.776884,236.72,236.65,16.50915694]
[1732607180648,40.28604094,236.72,236.66,4.2254]
[1732607181772,16.50915694,236.68,236.62,15.9852]
[1732607181945,16.50915694,236.64,236.6,4.2265]
[1732607182148,28.001284,236.72,236.5,91.64163057]
[1732607182149,23.776884,236.61,236.51,4.2281]
[1732607182465,16.50915694,236.58,236.51,4.2281]
[1732607183061,16.50915694,236.6,236.52,16.50915694]
[1732607183269,23.776884,236.59,236.52,16.50915694]
[1732607183569,23.776884,236.59,236.53,4.2277]
[1732607183867,16.50915694,236.6,236.53,4.2277]
[1732607184071,23.776884,236.63,236.58,16.50915694]
[1732607185245,16.50915694,236.67,236.6,16.50915694]
[1732607185445,40.28604094,236.66,236.59,4.2267]
[1732607186174,40.28604094,236.66,236.59,20.73585694]
[1732607186175,23.776884,236.66,236.59,20.73585694]
[1732607186469,16.50915694,236.65,236.59,20.73585694]
[1732607187077,16.50915694,236.63,236.55,16.50915694]
[1732607187250,16.50915694,236.62,236.56,20.0]
[1732607187686,16.50915694,236.63,236.56,36.50915694]
[1732607188868,23.776884,236.68,236.51,4.2281]
[1732607188869,16.50915694,236.59,236.51,4.2281]
[1732607189070,16.50915694,236.57,236.51,4.2281]
[1732607189369,16.50915694,236.55,236.49,4.2285]
[1732607189968,23.776884,236.56,236.5,16.50915694]
[1732607190466,16.50915694,236.55,236.49,4.2285]
[1732607191151,16.50915694,236.55,236.48,16.50915694]
[1732607192378,50.16194531,236.56,236.49,4.2285]
[1732607193952,50.16194531,236.56,236.48,26.38506131]
[1732607194589,26.38506131,236.54,236.46,26.38506131]
[1732607195068,26.38506131,236.58,236.52,26.38506131]
[1732607195271,26.38506131,236.6,236.52,26.38506131]
[1732607195857,26.38506131,236.6,236.53,4.2277]
[1732607196059,26.38506131,236.62,236.54,26.38506131]
[1732607196881,23.776884,236.61,236.54,26.38506131]
[1732607197860,4.2249,236.69,236.47,26.38506131]
[1732607197861,26.38506131,236.64,236.56,26.38506131]
[1732607198878,26.38506131,236.64,236.57,4.227]
[1732607199094,23.776884,236.65,236.58,26.38506131]
[1732607200100,26.38506131,236.66,236.59,4.2267]
[1732607201383,26.38506131,236.7,236.62,26.38506131]
[1732607201984,16.3121,236.75,236.64,26.38506131]
[1732607202169,26.38506131,236.72,236.64,26.38506131]
[1732607203389,26.38506131,236.72,236.65,4.2256]
[1732607203768,23.776884,236.73,236.66,26.38506131]
[1732607203972,26.38506131,236.72,236.65,4.2256]
[1732607205090,0.4894033,236.77,236.71,26.38506131]
[1732607205390,0.4894033,236.77,236.72,26.38506131]
[1732607205571,0.4894033,236.77,236.71,26.38506131]
[1732607205891,0.4894033,236.77,236.72,26.38506131]
[1732607206187,0.4894033,236.77,236.7,26.38506131]
[1732607206595,26.38506131,236.75,236.68,26.38506131]
[1732607206888,26.38506131,236.71,236.65,14.7897]
[1732607207065,26.38506131,236.75,236.67,26.38506131]
[1732607207468,26.38506131,236.73,236.65,41.17476131]
[1732607207988,26.38506131,236.71,236.65,41.17476131]
[1732607208777,26.38506131,236.73,236.65,41.17476131]
[1732607209686,26.38506131,236.69,236.65,4.2256]
[1732607209995,24.2662873,236.77,236.59,26.38506131]
[1732607209996,26.38506131,236.67,236.59,26.38506131]
[1732607210289,26.38506131,236.65,236.6,4.2265]
[1732607210468,26.38506131,236.67,236.61,26.38506131]
[1732607210670,15.7955,236.75,236.61,26.38506131]
[1732607210671,26.38506131,236.69,236.61,26.38506131]
[1732607211091,26.38506131,236.67,236.62,4.2261]
[1732607211688,26.38506131,236.65,236.62,4.2261]
[1732607211879,26.38506131,236.63,236.62,4.2261]
[1732607212476,26.38506131,236.63,236.58,4.2268]
[1732607212985,26.38506131,236.63,236.56,14.7951]
[1732607213593,26.38506131,236.63,236.56,41.18016131]
[1732607214399,16.48003151,236.64,236.56,31.27513151]
[1732607214699,16.48003151,236.66,236.58,16.48003151]
[1732607214876,23.776884,236.65,236.58,16.48003151]
[1732607215300,16.48003151,236.64,236.59,4.2267]
[1732607216590,16.48003151,236.68,236.6,16.48003151]
[1732607217402,16.48003151,236.68,236.61,4.2263]
[1732607217759,16.48003151,236.68,236.61,14.7922]
[1732607218478,16.48003151,236.66,236.61,14.7922]
[1732607218685,23.776884,236.65,236.61,4.2263]
[1732607219286,23.776884,236.65,236.59,4.2267]
[1732607219675,16.48003151,236.68,236.6,16.48003151]
[1732607221003,23.776884,236.69,236.62,16.48003151]
[1732607221373,40.25691551,236.69,236.61,16.48003151]
[1732607221682,16.48003151,236.67,236.59,16.48003151]
[1732607221889,16.48003151,236.68,236.6,16.48003151]
[1732607222090,23.776884,236.67,236.6,16.48003151]
[1732607222897,23.776884,236.67,236.61,4.2263]
[1732607224891,23.776884,236.69,236.62,16.48003151]
[1732607225406,23.776884,236.69,236.61,4.2263]
[1732607225407,16.48003151,236.66,236.61,4.2263]
[1732607225787,15.7955,236.75,236.61,4.2263]
[1732607225788,23.776884,236.67,236.61,4.2263]
[1732607226186,16.48003151,236.68,236.61,4.2263]
[1732607226395,16.48003151,236.72,236.64,16.48003151]
[1732607227181,16.48003151,236.75,236.68,16.48003151]
[1732607227788,16.48003151,236.76,236.68,16.48003151]
[1732607228415,16.48003151,236.76,236.69,4.2249]
[1732607228990,16.48003151,236.74,236.69,4.2249]
[1732607229206,16.48003151,236.74,236.69,3.84262666]
[1732607229711,16.48003151,236.74,236.67,14.7882]
[1732607230314,16.48003151,236.7,236.67,4.2252]
[1732607231109,16.48003151,236.72,236.67,4.2252]
[1732607232016,16.48003151,236.72,236.65,4.2256]
[1732607232193,23.776884,236.73,236.66,16.48003151]
[1732607232992,0.4894033,236.77,236.72,16.48003151]
[1732607233411,0.4894033,236.77,236.68,20.0]
[1732607233593,0.4894033,236.77,236.72,20.0]
[1732607234194,0.4894033,236.77,236.73,4.2242]
[1732607234504,0.4894033,236.77,236.73,40.70423151]
[1732607234710,0.4894033,236.77,236.73,31.26473151]
[1732607235414,0.4894033,236.77,236.73,4.2242]
[1732607235724,16.48003151,236.75,236.69,4.2249]
[1732607236017,16.48003151,236.73,236.69,4.2249]
[1732607236208,16.48003151,236.71,236.65,4.2256]
[1732607236907,16.48003151,236.69,236.65,4.2256]
[1732607237096,23.776884,236.72,236.61,4.2263]
[1732607237097,16.48003151,236.67,236.61,4.2263]
[1732607237423,16.48003151,236.63,236.61,4.2263]
[1732607237593,28.001284,236.72,236.56,10.5678]
[1732607237594,16.48003151,236.62,236.59,4.2266]
[1732607237790,16.48003151,236.6,236.55,4.2274]
[1732607237989,28.001284,236.72,236.48,26.44918185]
[1732607237990,16.48003151,236.56,236.48,26.44918185]
[1732607238210,16.48003151,236.52,236.46,4.229]
[1732607238513,16.48003151,236.5,236.46,4.229]
[1732607238887,16.48003151,236.52,236.46,4.229]
[1732607239086,23.776884,236.52,236.46,4.229]
[1732607239519,16.48003151,236.55,236.47,16.48003151]
[1732607239700,16.48003151,236.53,236.46,4.229]
[1732607239905,40.25691551,236.54,236.47,16.48003151]
[1732607240295,40.25691551,236.54,236.48,4.2286]
[1732607240700,16.48003151,236.55,236.48,4.2286]
[1732607240917,16.48003151,236.56,236.48,20.70863151]
[1732607242189,16.48003151,236.56,236.49,16.48003151]
[1732607242390,16.48003151,236.58,236.51,36.48003151]
[1732607242588,16.48003151,236.58,236.51,20.0]
[1732607243121,16.48003151,236.57,236.51,20.0]
[1732607243515,16.48003151,236.55,236.48,4.2286]
[1732607243700,16.48003151,236.53,236.48,4.2286]
[1732607244024,23.776884,236.54,236.48,4.2286]
[1732607244025,16.48003151,236.51,236.48,4.2286]
[1732607244217,16.48003151,236.51,236.45,4.2292]
[1732607244416,16.48003151,236.55,236.47,16.48003151]
[1732607244720,16.48003151,236.52,236.45,14.8022]
[1732607245024,40.25691551,236.54,236.46,16.48003151]
[1732607245402,16.48003151,236.54,236.48,20.0]
[1732607246516,16.48003151,236.56,236.49,4.2285]
[1732607246714,16.48003151,236.58,236.5,16.48003151]
[1732607246999,23.776884,236.57,236.5,16.48003151]
[1732607247506,16.48003151,236.58,236.5,16.48003151]
[1732607248720,16.48003151,236.58,236.51,4.2281]
[1732607249035,23.776884,236.59,236.52,16.48003151]
[1732607249322,16.48003151,236.64,236.56,16.48003151]
[1732607250105,16.48003151,236.67,236.59,16.48003151]
[1732607250307,16.48003151,236.69,236.61,16.48003151]
[1732607250715,16.48003151,236.68,236.62,4.2261]
[1732607252419,16.48003151,236.72,236.64,16.48003151]
[1732607253123,16.48003151,236.72,236.65,16.48003151]
[1732607253708,16.48003151,236.72,236.66,4.2254]
[1732607255530,16.48003151,236.76,236.69,16.48003151]
[1732607255831,0.4894033,236.77,236.66,20.0]
[1732607255832,16.48003151,236.71,236.66,20.0]
[1732607256008,16.48003151,236.7,236.66,20.0]
[1732607256210,16.48003151,236.68,236.66,4.2254]
[1732607257026,4.7129033,236.77,236.66,4.2254]
[1732607257027,16.48003151,236.69,236.66,4.2254]
[1732607258414,16.48003151,236.7,236.66,4.2254]
[1732607259136,16.48003151,236.72,236.66,4.2254]
[1732607259428,16.96943481,236.77,236.69,16.48003151]
[1732607259611,0.4894033,236.77,236.71,16.48003151]
[1732607259811,16.96943481,236.77,236.7,20.0]
[1732607260008,16.48003151,236.76,236.7,20.0]
[1732607260244,16.48003151,236.76,236.68,16.48003151]
[1732607261115,16.48003151,236.76,236.69,4.2249]
[1732607263017,16.48003151,236.75,236.67,16.48003151]
[1732607263338,16.48003151,236.73,236.64,16.48003151]
[1732607263640,16.48003151,236.69,236.61,31.27223151]
[1732607264720,16.48003151,236.69,236.65,4.2256]
[1732607264943,16.48003151,236.68,236.65,4.2256]
[1732607265149,16.48003151,236.67,236.65,4.2256]
[1732607265439,23.776884,236.65,236.58,4.2268]
[1732607265641,16.48003151,236.64,236.58,4.2268]
[1732607265937,16.48003151,236.62,236.58,4.2268]
[1732607266841,16.48003151,236.6,236.54,4.2276]
[1732607267620,23.776884,236.65,236.54,4.2276]
[1732607267621,28.002584,236.65,236.54,4.2276]
[1732607267925,23.776884,236.55,236.47,4.2288]
[1732607268131,16.48003151,236.52,236.47,4.2288]
[1732607268841,16.48003151,236.52,236.45,10.5729]
[1732607269145,16.48003151,236.52,236.45,14.8021]
[1732607269921,16.48003151,236.54,236.47,4.2288]
[1732607270122,23.776884,236.53,236.47,4.2288]
[1732607270419,16.48003151,236.54,236.47,4.2288]
[1732607270629,16.48003151,236.54,236.47,14.8009]
[1732607271114,16.48003151,236.54,236.47,31.28093151]
[1732607271816,16.48003151,236.56,236.49,16.48003151]
[1732607272142,21.4494,236.6,236.47,27.05213151]
[1732607272143,16.48003151,236.54,236.47,27.05213151]
[1732607274158,16.48003151,236.54,236.47,31.28093151]
[1732607274336,23.776884,236.55,236.47,4.2288]
[1732607274337,16.48003151,236.52,236.47,4.2288]
[1732607274960,16.48003151,236.54,236.47,4.2288]
[1732607275165,23.776884,236.53,236.47,4.2288]
[1732607276338,16.48003151,236.54,236.47,20.70883151]
[1732607278562,16.48003151,236.5,236.47,4.2288]
[1732607279233,16.48003151,236.52,236.47,4.2288]
[1732607279555,16.48003151,236.54,236.47,20.70883151]
[1732607279739,16.48003151,236.56,236.49,16.48003151]
[1732607279931,23.776884,236.57,236.49,16.48003151]
[1732607280134,16.48003151,236.56,236.5,4.2283]
[1732607280343,16.48003151,236.58,236.5,20.70833151]
[1732607280531,23.776884,236.57,236.5,20.70833151]
[1732607280746,16.48003151,236.6,236.52,16.48003151]
[1732607281153,16.48003151,236.58,236.5,31.27913151]
[1732607281560,16.48003151,236.59,236.52,16.48003151]
[1732607282153,16.48003151,236.59,236.53,4.2277]
[1732607283867,16.48003151,236.61,236.53,4.2277]
[1732607284050,16.48003151,236.64,236.56,16.48003151]
[1732607284245,16.48003151,236.6,236.53,14.7971]
[1732607284845,16.48003151,236.6,236.54,16.48003151]
[1732607285162,16.48003151,236.62,236.54,16.48003151]
[1732607286058,16.48003151,236.62,236.55,4.2274]
[1732607286565,16.48003151,236.62,236.55,14.7959]
[1732607287358,23.776884,236.61,236.55,14.7959]
[1732607287560,16.48003151,236.58,236.55,4.2274]
[1732607287760,16.48003151,236.56,236.5,4.2283]
[1732607287955,16.48003151,236.54,236.47,14.8007]
[1732607288255,16.48003151,236.58,236.5,16.48003151]
[1732607289038,23.776884,236.55,236.48,16.48003151]
[1732607289236,23.776884,236.55,236.47,14.8007]
[1732607289237,16.48003151,236.54,236.47,14.8007]
[1732607290262,16.48003151,236.54,236.47,4.2288]
[1732607290559,16.48003151,236.5,236.47,4.2288]
[1732607291262,16.48003151,236.48,236.45,4.2291]
[1732607291567,16.48003151,236.46,236.41,4.2299]
[1732607292659,16.48003151,236.44,236.41,4.2299]
[1732607292841,23.776884,236.43,236.39,70.25492941]
[1732607294264,16.48003151,236.4,236.39,66.02482941]
[1732607294858,40.25691551,236.4,236.39,66.02482941]
[1732607295746,23.776884,236.39,236.36,4.2307]
[1732607295942,16.48003151,236.38,236.36,4.2307]
[1732607296461,16.48003151,236.38,236.33,20.0]
[1732607296674,16.48003151,236.38,236.34,4.231]
[1732607300559,23.776884,236.39,236.34,4.231]
[1732607301065,23.776884,236.35,236.26,4.2326]
[1732607301271,16.48003151,236.29,236.24,4.2329]
[1732607301442,16.48003151,236.34,236.24,4.2329]
[1732607301443,16.48003151,236.27,236.24,4.2329]
[1732607302368,16.48003151,236.27,236.22,4.2333]
[1732607303065,23.776884,236.28,236.22,4.2333]
[1732607303373,16.48003151,236.27,236.22,4.2333]
[1732607304349,16.48003151,236.27,236.21,10.5833]
[1732607305560,16.48003151,236.27,236.15,29.2405]
[1732607305764,16.48003151,236.25,236.2,20.0]
[1732607305966,16.48003151,236.27,236.2,20.0]
[1732607306270,16.48003151,236.27,236.21,16.48003151]
[1732607307072,16.48003151,236.27,236.22,4.2333]
[1732607307664,23.776884,236.26,236.2,4.2336]
[1732607307979,16.48003151,236.23,236.18,4.2338]
[1732607308279,16.48003151,236.21,236.18,4.2338]
[1732607308673,16.48003151,236.23,236.18,4.2338]
[1732607309181,16.48003151,236.23,236.16,4.2344]
[1732607310355,16.48003151,236.21,236.13,16.48003151]
[1732607310573,1.94582763,236.21,236.16,20.0]
[1732607310786,16.48003151,236.2,236.13,16.48003151]
[1732607311076,16.48003151,236.23,236.15,36.48003151]
[1732607311450,16.48003151,236.24,236.17,16.48003151]
[1732607311867,16.48003151,236.24,236.15,20.0]
[1732607311868,23.776884,236.26,236.2,16.48003151]
[1732607312090,16.48003151,236.3,236.23,16.48003151]
[1732607312296,16.48003151,236.27,236.22,4.2333]
[1732607312470,16.48003151,236.27,236.2,4.2335]
[1732607312800,16.48003151,236.26,236.2,4.2335]
[1732607313380,23.776884,236.25,236.2,4.2335]
[1732607314180,40.25691551,236.25,236.2,4.2335]
[1732607314580,16.48003151,236.22,236.14,16.48003151]
[1732607314797,16.48003151,236.22,236.16,4.2342]
[1732607316177,16.48003151,236.2,236.16,4.2342]
[1732607317181,16.48003151,236.2,236.14,20.71463151]
[1732607317589,28.009684,236.25,236.14,4.2346]
[1732607317815,16.48003151,236.2,236.14,4.2346]
[1732607318297,16.48003151,236.2,236.13,4.2349]
[1732607319702,40.25691551,236.2,236.13,16.48003151]